[Event "Titled Tuesday Blitz November 29 Early 2022"]
[White "Bethke, Richard"]
[Black "Putri, Regita Desyari"]
[WhiteFideId "12959243"]
[BlackFideId "7109083"]
[WhiteElo "2369"]
[BlackElo "1930"]
[Result "1-0"]
[Round "02"]
[TimeControl "180+1"]
[Date "2022.11.30"]
[WhiteClock "0:02:24"]
[BlackClock "0:00:28"]

1. e4 {[%clk 0:03:00]}  c5 {[%clk 0:02:57]} 2. Nf3 {[%clk 0:03:00]}  d6 {[%clk 0:02:50]} 3. d4 {[%clk 0:03:00]}  cxd4 {[%clk 0:02:50]} 4. Nxd4 {[%clk 0:03:01]}  Nf6 {[%clk 0:02:49]} 5. Nc3 {[%clk 0:03:01]}  a6 {[%clk 0:02:50]} 6. Be3 {[%clk 0:03:00]}  e6 {[%clk 0:02:47]} 7. Be2 {[%clk 0:02:57]}  Be7 {[%clk 0:02:47]} 8. f4 {[%clk 0:02:57]}  Nbd7 {[%clk 0:02:45]} 9. g4 {[%clk 0:02:55]}  Nc5 {[%clk 0:02:42]} 10. Bf3 {[%clk 0:02:52]}  Qc7 {[%clk 0:02:41]} 11. g5 {[%clk 0:02:51]}  Nfd7 {[%clk 0:02:30]} 12. Qd2 {[%clk 0:02:51]}  Nb6 {[%clk 0:02:26]} 13. b3 {[%clk 0:02:47]}  O-O {[%clk 0:02:03]} 14. f5 {[%clk 0:02:38]}  exf5 {[%clk 0:01:50]} 15. exf5 {[%clk 0:02:39]}  Re8 {[%clk 0:01:51]} 16. Rg1 {[%clk 0:02:38]}  Bf8 {[%clk 0:01:49]} 17. O-O-O {[%clk 0:02:37]}  Bd7 {[%clk 0:01:34]} 18. g6 {[%clk 0:02:35]}  fxg6 {[%clk 0:00:47]} 19. fxg6 {[%clk 0:02:33]}  h6 {[%clk 0:00:47]} 20. Bxh6 {[%clk 0:02:27]}  gxh6 {[%clk 0:00:39]} 21. g7 {[%clk 0:02:27]}  Bxg7 {[%clk 0:00:39]} 22. Qxh6 {[%clk 0:02:27]}  Re7 {[%clk 0:00:32]} 23. Nd5 {[%clk 0:02:23]}  Nxd5 {[%clk 0:00:31]} 24. Bxd5+ {[%clk 0:02:24]}  Kf8 {[%clk 0:00:28]} 25. Rdf1+ {[%clk 0:02:23]}  Ke8 {[%clk 0:00:28]} 26. Qh8+ {[%clk 0:02:24]} 1-0


[Site "https://www.chess.com"]

[Event "Titled Tuesday Blitz November 29 Early 2022"]
[White "Bilan, Danila"]
[Black "Matveeva, Olga"]
[WhiteFideId "24161918"]
[BlackFideId "24107018"]
[WhiteElo "2173"]
[BlackElo "2055"]
[Result "1/2-1/2"]
[Round "02"]
[TimeControl "180+1"]
[Date "2022.11.30"]
[WhiteClock "0:00:10"]
[BlackClock "0:00:11"]

1. d3 {[%clk 0:02:59]}  Nf6 {[%clk 0:02:58]} 2. Nf3 {[%clk 0:02:58]}  d5 {[%clk 0:02:57]} 3. g3 {[%clk 0:02:58]}  Nc6 {[%clk 0:02:56]} 4. Bg2 {[%clk 0:02:58]}  e5 {[%clk 0:02:56]} 5. O-O {[%clk 0:02:58]}  Bc5 {[%clk 0:02:51]} 6. Nbd2 {[%clk 0:02:54]}  O-O {[%clk 0:02:50]} 7. e4 {[%clk 0:02:54]}  dxe4 {[%clk 0:02:50]} 8. Nxe4 {[%clk 0:02:52]}  Nxe4 {[%clk 0:02:47]} 9. dxe4 {[%clk 0:02:52]}  a5 {[%clk 0:02:44]} 10. c3 {[%clk 0:02:48]}  b6 {[%clk 0:02:43]} 11. Bg5 {[%clk 0:02:42]}  f6 {[%clk 0:02:41]} 12. Be3 {[%clk 0:02:32]}  Bxe3 {[%clk 0:02:40]} 13. fxe3 {[%clk 0:02:33]}  Ba6 {[%clk 0:02:37]} 14. Rf2 {[%clk 0:02:29]}  Qxd1+ {[%clk 0:02:36]} 15. Rxd1 {[%clk 0:02:28]}  Rfd8 {[%clk 0:02:35]} 16. Rd5 {[%clk 0:02:14]}  Ne7 {[%clk 0:02:27]} 17. Rdd2 {[%clk 0:02:07]}  Bd3 {[%clk 0:02:10]} 18. Ne1 {[%clk 0:01:56]}  Bc4 {[%clk 0:02:05]} 19. b3 {[%clk 0:01:51]}  Be6 {[%clk 0:02:04]} 20. Bf1 {[%clk 0:01:27]}  Kf7 {[%clk 0:01:52]} 21. Nd3 {[%clk 0:01:24]}  Ke8 {[%clk 0:01:49]} 22. Nb2 {[%clk 0:01:23]}  Rxd2 {[%clk 0:01:44]} 23. Rxd2 {[%clk 0:01:22]}  Rd8 {[%clk 0:01:44]} 24. Bb5+ {[%clk 0:01:13]}  c6 {[%clk 0:01:43]} 25. Rxd8+ {[%clk 0:01:13]}  Kxd8 {[%clk 0:01:43]} 26. Bc4 {[%clk 0:01:14]}  Bg4 {[%clk 0:01:31]} 27. Kf2 {[%clk 0:01:12]}  Nc8 {[%clk 0:01:25]} 28. Bg8 {[%clk 0:01:05]}  h6 {[%clk 0:01:14]} 29. Nc4 {[%clk 0:01:03]}  Kc7 {[%clk 0:01:10]} 30. Bh7 {[%clk 0:00:58]}  Nd6 {[%clk 0:01:07]} 31. Nxd6 {[%clk 0:00:52]}  Kxd6 {[%clk 0:01:08]} 32. Ke1 {[%clk 0:00:48]}  Be6 {[%clk 0:00:57]} 33. Kd2 {[%clk 0:00:43]}  a4 {[%clk 0:00:49]} 34. Kc2 {[%clk 0:00:41]}  Kc5 {[%clk 0:00:43]} 35. Bg6 {[%clk 0:00:37]}  b5 {[%clk 0:00:36]} 36. b4+ {[%clk 0:00:35]}  Kd6 {[%clk 0:00:30]} 37. a3 {[%clk 0:00:35]}  Bc4 {[%clk 0:00:22]} 38. Bh5 {[%clk 0:00:34]}  Be6 {[%clk 0:00:18]} 39. Be2 {[%clk 0:00:32]}  Bf7 {[%clk 0:00:18]} 40. Bd3 {[%clk 0:00:21]}  Be6 {[%clk 0:00:16]} 41. Bf1 {[%clk 0:00:20]}  Bf7 {[%clk 0:00:17]} 42. h4 {[%clk 0:00:17]}  Bg6 {[%clk 0:00:16]} 43. Kd3 {[%clk 0:00:17]}  Bf7 {[%clk 0:00:15]} 44. Bg2 {[%clk 0:00:16]}  Bc4+ {[%clk 0:00:15]} 45. Kd2 {[%clk 0:00:16]}  Be6 {[%clk 0:00:15]} 46. Bf3 {[%clk 0:00:16]}  Bf7 {[%clk 0:00:15]} 47. Be2 {[%clk 0:00:16]}  Be6 {[%clk 0:00:14]} 48. c4 {[%clk 0:00:15]}  Bd7 {[%clk 0:00:11]} 49. c5+ {[%clk 0:00:14]}  Ke7 {[%clk 0:00:11]} 50. Bd3 {[%clk 0:00:12]}  Be6 {[%clk 0:00:11]} 51. Be2 {[%clk 0:00:13]}  Bd7 {[%clk 0:00:11]} 52. Bf3 {[%clk 0:00:13]}  Be6 {[%clk 0:00:11]} 53. Ke2 {[%clk 0:00:14]}  Bd7 {[%clk 0:00:11]} 54. Kf2 {[%clk 0:00:15]}  Be6 {[%clk 0:00:11]} 55. g4 {[%clk 0:00:15]}  Bd7 {[%clk 0:00:10]} 56. Kg3 {[%clk 0:00:16]}  Be6 {[%clk 0:00:10]} 57. Be2 {[%clk 0:00:13]}  Bd7 {[%clk 0:00:10]} 58. Bd1 {[%clk 0:00:13]}  Be6 {[%clk 0:00:10]} 59. Bc2 {[%clk 0:00:13]}  Bd7 {[%clk 0:00:10]} 60. Bb1 {[%clk 0:00:13]}  Be6 {[%clk 0:00:11]} 61. Kf3 {[%clk 0:00:13]}  Bf7 {[%clk 0:00:11]} 62. Bc2 {[%clk 0:00:13]}  Be6 {[%clk 0:00:10]} 63. Bd3 {[%clk 0:00:13]}  Bf7 {[%clk 0:00:10]} 64. Be2 {[%clk 0:00:13]}  Be6 {[%clk 0:00:11]} 65. Kg3 {[%clk 0:00:13]}  Bf7 {[%clk 0:00:10]} 66. Bd3 {[%clk 0:00:12]}  g5 {[%clk 0:00:09]} 67. hxg5 {[%clk 0:00:08]}  hxg5 {[%clk 0:00:10]} 68. Bc2 {[%clk 0:00:08]}  Be6 {[%clk 0:00:10]} 69. Bd3 {[%clk 0:00:09]}  Bf7 {[%clk 0:00:10]} 70. Bc2 {[%clk 0:00:09]}  Be6 {[%clk 0:00:11]} 71. Bd3 {[%clk 0:00:10]}  Bf7 {[%clk 0:00:11]} 1/2-1/2


[Site "https://www.chess.com"]

[Event "Titled Tuesday Blitz November 29 Early 2022"]
[White "Bogaudinov, Rushan"]
[Black "Domingo Nunez, Ruben"]
[WhiteFideId "4129288"]
[BlackFideId "22245570"]
[WhiteElo "1997"]
[BlackElo "2406"]
[Result "1-0"]
[Round "02"]
[TimeControl "180+1"]
[Date "2022.11.30"]
[WhiteClock "0:00:10"]
[BlackClock "0:00:11"]

1. d4 {[%clk 0:03:00]}  Nc6 {[%clk 0:02:58]} 2. Nf3 {[%clk 0:02:58]}  h6 {[%clk 0:02:57]} 3. c4 {[%clk 0:02:58]}  g5 {[%clk 0:02:56]} 4. d5 {[%clk 0:02:56]}  Nb8 {[%clk 0:02:56]} 5. Nc3 {[%clk 0:02:53]}  d6 {[%clk 0:02:56]} 6. e4 {[%clk 0:02:52]}  Bg7 {[%clk 0:02:56]} 7. h4 {[%clk 0:02:50]}  g4 {[%clk 0:02:56]} 8. Nd4 {[%clk 0:02:50]}  c5 {[%clk 0:02:55]} 9. Nf5 {[%clk 0:02:47]}  Bxf5 {[%clk 0:02:55]} 10. exf5 {[%clk 0:02:48]}  h5 {[%clk 0:02:56]} 11. Bg5 {[%clk 0:02:43]}  Nd7 {[%clk 0:02:56]} 12. Qb3 {[%clk 0:02:36]}  Qa5 {[%clk 0:02:54]} 13. Rc1 {[%clk 0:02:22]}  Rb8 {[%clk 0:02:54]} 14. Be2 {[%clk 0:02:14]}  b5 {[%clk 0:01:55]} 15. cxb5 {[%clk 0:02:09]}  a6 {[%clk 0:01:55]} 16. a4 {[%clk 0:02:08]}  Nh6 {[%clk 0:01:44]} 17. Qc2 {[%clk 0:02:05]}  O-O {[%clk 0:01:23]} 18. Bxe7 {[%clk 0:01:51]}  Rfe8 {[%clk 0:01:24]} 19. Bxd6 {[%clk 0:01:51]}  Rbd8 {[%clk 0:01:24]} 20. O-O {[%clk 0:01:45]}  Nf6 {[%clk 0:01:13]} 21. Bxc5 {[%clk 0:01:39]}  g3 {[%clk 0:01:13]} 22. b4 {[%clk 0:01:36]}  Qc7 {[%clk 0:01:11]} 23. d6 {[%clk 0:01:32]}  gxf2+ {[%clk 0:01:11]} 24. Rxf2 {[%clk 0:01:32]}  Rxd6 {[%clk 0:01:11]} 25. Bxd6 {[%clk 0:01:08]}  Qxd6 {[%clk 0:01:12]} 26. Qd3 {[%clk 0:00:58]}  Qxb4 {[%clk 0:01:12]} 27. bxa6 {[%clk 0:00:50]}  Nfg4 {[%clk 0:01:10]} 28. Bxg4 {[%clk 0:00:46]}  Nxg4 {[%clk 0:01:11]} 29. Nd5 {[%clk 0:00:33]}  Qd6 {[%clk 0:00:52]} 30. g3 {[%clk 0:00:26]}  Re3 {[%clk 0:00:40]} 31. Rc8+ {[%clk 0:00:23]}  Bf8 {[%clk 0:00:38]} 32. Rxf8+ {[%clk 0:00:15]}  Kxf8 {[%clk 0:00:37]} 33. Qxe3 {[%clk 0:00:10]}  Nxe3 {[%clk 0:00:36]} 34. Nxe3 {[%clk 0:00:11]}  Qxg3+ {[%clk 0:00:35]} 35. Ng2 {[%clk 0:00:09]}  Qc7 {[%clk 0:00:27]} 36. Rf4 {[%clk 0:00:08]}  Qb6+ {[%clk 0:00:26]} 37. Kh2 {[%clk 0:00:08]}  Qxa6 {[%clk 0:00:27]} 38. Kg3 {[%clk 0:00:09]}  Qd6 {[%clk 0:00:27]} 39. Kh2 {[%clk 0:00:09]}  Kg7 {[%clk 0:00:27]} 40. Kg3 {[%clk 0:00:09]}  Kf6 {[%clk 0:00:28]} 41. Kh2 {[%clk 0:00:09]}  Ke5 {[%clk 0:00:29]} 42. Kg3 {[%clk 0:00:09]}  Qd3+ {[%clk 0:00:28]} 43. Kh2 {[%clk 0:00:09]}  Qe2 {[%clk 0:00:27]} 44. Kg1 {[%clk 0:00:09]}  Qd1+ {[%clk 0:00:21]} 45. Kh2 {[%clk 0:00:09]}  Qd3 {[%clk 0:00:21]} 46. Kg1 {[%clk 0:00:09]}  Qg3 {[%clk 0:00:22]} 47. Kf1 {[%clk 0:00:09]}  Qh2 {[%clk 0:00:20]} 48. Kf2 {[%clk 0:00:09]}  f6 {[%clk 0:00:19]} 49. Rf3 {[%clk 0:00:08]}  Qh1 {[%clk 0:00:16]} 50. Re3+ {[%clk 0:00:08]}  Kxf5 {[%clk 0:00:17]} 51. a5 {[%clk 0:00:07]}  Qa1 {[%clk 0:00:15]} 52. Rf3+ {[%clk 0:00:07]}  Kg6 {[%clk 0:00:15]} 53. Nf4+ {[%clk 0:00:07]}  Kh6 {[%clk 0:00:15]} 54. Kg3 {[%clk 0:00:08]}  Qxa5 {[%clk 0:00:15]} 55. Ng2 {[%clk 0:00:08]}  Qe5+ {[%clk 0:00:15]} 56. Rf4 {[%clk 0:00:09]}  Kg7 {[%clk 0:00:16]} 57. Kf3 {[%clk 0:00:09]}  Kf7 {[%clk 0:00:16]} 58. Kg3 {[%clk 0:00:09]}  Qe2 {[%clk 0:00:16]} 59. Rf3 {[%clk 0:00:09]}  Qe5+ {[%clk 0:00:14]} 60. Rf4 {[%clk 0:00:09]}  Qb8 {[%clk 0:00:15]} 61. Kf3 {[%clk 0:00:10]}  Ke6 {[%clk 0:00:14]} 62. Kg3 {[%clk 0:00:10]}  f5 {[%clk 0:00:14]} 63. Kf3 {[%clk 0:00:11]}  Qb3+ {[%clk 0:00:14]} 64. Kf2 {[%clk 0:00:11]}  Ke5 {[%clk 0:00:14]} 65. Rf3 {[%clk 0:00:11]}  Qc2+ {[%clk 0:00:13]} 66. Kg3 {[%clk 0:00:12]}  Qc7 {[%clk 0:00:12]} 67. Kf2 {[%clk 0:00:11]}  Qb6+ {[%clk 0:00:08]} 68. Kg3 {[%clk 0:00:11]}  Qg6+ {[%clk 0:00:09]} 69. Kf2 {[%clk 0:00:11]}  Qg4 {[%clk 0:00:10]} 70. Re3+ {[%clk 0:00:11]}  Kf6 {[%clk 0:00:09]} 71. Rg3 {[%clk 0:00:11]}  Qd4+ {[%clk 0:00:09]} 72. Kf3 {[%clk 0:00:10]}  Qe4+ {[%clk 0:00:09]} 73. Kf2 {[%clk 0:00:10]}  Ke5 {[%clk 0:00:09]} 74. Re3 {[%clk 0:00:10]}  f4 {[%clk 0:00:08]} 75. Rxe4+ {[%clk 0:00:10]}  Kxe4 {[%clk 0:00:09]} 76. Ne1 {[%clk 0:00:10]}  Kf5 {[%clk 0:00:10]} 77. Kf3 {[%clk 0:00:09]}  Ke5 {[%clk 0:00:10]} 78. Ng2 {[%clk 0:00:10]}  Kf5 {[%clk 0:00:11]} 79. Nxf4 {[%clk 0:00:10]} 1-0


[Site "https://www.chess.com"]

[Event "Titled Tuesday Blitz November 29 Early 2022"]
[White "Boros, Denes"]
[Black "Fiedorek, Michal"]
[WhiteFideId "722340"]
[BlackFideId "1199528"]
[WhiteElo "2464"]
[BlackElo "2201"]
[Result "1-0"]
[Round "02"]
[TimeControl "180+1"]
[Date "2022.11.30"]
[WhiteClock "0:00:24"]
[BlackClock "0:00:02"]

1. d4 {[%clk 0:03:00]}  Nf6 {[%clk 0:02:57]} 2. Nc3 {[%clk 0:03:01]}  d5 {[%clk 0:02:52]} 3. Bg5 {[%clk 0:03:01]}  c6 {[%clk 0:02:51]} 4. Qd3 {[%clk 0:03:00]}  Nbd7 {[%clk 0:02:45]} 5. f3 {[%clk 0:02:58]}  b5 {[%clk 0:02:44]} 6. a3 {[%clk 0:02:55]}  e6 {[%clk 0:02:39]} 7. e4 {[%clk 0:02:55]}  dxe4 {[%clk 0:02:38]} 8. fxe4 {[%clk 0:02:55]}  Be7 {[%clk 0:02:39]} 9. Nf3 {[%clk 0:02:52]}  a6 {[%clk 0:02:38]} 10. e5 {[%clk 0:02:49]}  Nd5 {[%clk 0:02:36]} 11. Bxe7 {[%clk 0:02:47]}  Qxe7 {[%clk 0:02:36]} 12. Ne4 {[%clk 0:02:46]}  O-O {[%clk 0:02:36]} 13. h4 {[%clk 0:02:34]}  c5 {[%clk 0:02:29]} 14. Nfg5 {[%clk 0:02:27]}  f5 {[%clk 0:02:20]} 15. exf6 {[%clk 0:02:25]}  N7xf6 {[%clk 0:02:20]} 16. Nxc5 {[%clk 0:02:19]}  e5 {[%clk 0:02:14]} 17. O-O-O {[%clk 0:02:18]}  exd4 {[%clk 0:02:02]} 18. Qxd4 {[%clk 0:02:11]}  Bg4 {[%clk 0:02:02]} 19. Bd3 {[%clk 0:02:05]}  Bxd1 {[%clk 0:02:00]} 20. Rxd1 {[%clk 0:02:06]}  Qe3+ {[%clk 0:01:38]} 21. Qxe3 {[%clk 0:02:05]}  Nxe3 {[%clk 0:01:39]} 22. Rd2 {[%clk 0:01:57]}  Nfd5 {[%clk 0:01:38]} 23. c4 {[%clk 0:01:44]}  bxc4 {[%clk 0:01:32]} 24. Bxh7+ {[%clk 0:01:43]}  Kh8 {[%clk 0:01:26]} 25. Rxd5 {[%clk 0:01:06]}  Nxd5 {[%clk 0:01:17]} 26. Be4 {[%clk 0:01:06]}  Ne3 {[%clk 0:00:51]} 27. Nce6 {[%clk 0:00:50]}  Rae8 {[%clk 0:00:15]} 28. Nxf8 {[%clk 0:00:47]}  Rxf8 {[%clk 0:00:16]} 29. Bf3 {[%clk 0:00:35]}  Nf5 {[%clk 0:00:12]} 30. Ne6 {[%clk 0:00:30]}  Re8 {[%clk 0:00:11]} 31. Nc5 {[%clk 0:00:30]}  Nxh4 {[%clk 0:00:11]} 32. Bb7 {[%clk 0:00:30]}  Re2 {[%clk 0:00:09]} 33. Nxa6 {[%clk 0:00:28]}  Nxg2 {[%clk 0:00:08]} 34. Nb4 {[%clk 0:00:27]}  Ne3 {[%clk 0:00:08]} 35. a4 {[%clk 0:00:27]}  g5 {[%clk 0:00:07]} 36. a5 {[%clk 0:00:27]}  Nf5 {[%clk 0:00:03]} 37. a6 {[%clk 0:00:26]}  Re8 {[%clk 0:00:02]} 38. a7 {[%clk 0:00:24]} 1-0


[Site "https://www.chess.com"]

[Event "Titled Tuesday Blitz November 29 Early 2022"]
[White "Buksa, Nataliya"]
[Black "Fedoseev, Vladimir"]
[WhiteFideId "14123622"]
[BlackFideId "24130737"]
[WhiteElo "2313"]
[BlackElo "2726"]
[Result "0-1"]
[Round "02"]
[TimeControl "180+1"]
[Date "2022.11.30"]
[WhiteClock "0:01:36"]
[BlackClock "0:02:04"]

1. d4 {[%clk 0:03:00]}  d5 {[%clk 0:02:56]} 2. Nc3 {[%clk 0:03:00]}  c6 {[%clk 0:02:57]} 3. Bf4 {[%clk 0:03:00]}  Bf5 {[%clk 0:02:56]} 4. e3 {[%clk 0:03:00]}  e6 {[%clk 0:02:55]} 5. Nf3 {[%clk 0:03:01]}  Nd7 {[%clk 0:02:51]} 6. Ne5 {[%clk 0:03:01]}  Nxe5 {[%clk 0:02:48]} 7. Bxe5 {[%clk 0:03:01]}  Nf6 {[%clk 0:02:48]} 8. Be2 {[%clk 0:03:02]}  Bd6 {[%clk 0:02:42]} 9. g4 {[%clk 0:02:52]}  Bg6 {[%clk 0:02:38]} 10. h4 {[%clk 0:02:52]}  h5 {[%clk 0:02:36]} 11. g5 {[%clk 0:02:52]}  Bxe5 {[%clk 0:02:35]} 12. dxe5 {[%clk 0:02:51]}  Nd7 {[%clk 0:02:36]} 13. f4 {[%clk 0:02:48]}  Qb6 {[%clk 0:02:35]} 14. Kf2 {[%clk 0:02:37]}  Qxb2 {[%clk 0:02:33]} 15. Na4 {[%clk 0:02:37]}  Qxc2 {[%clk 0:02:23]} 16. Rc1 {[%clk 0:02:13]}  Qxa2 {[%clk 0:02:21]} 17. Nc3 {[%clk 0:02:06]}  Qa3 {[%clk 0:02:17]} 18. Qd2 {[%clk 0:01:59]}  Nc5 {[%clk 0:02:15]} 19. Rhd1 {[%clk 0:01:47]}  Qxc3 {[%clk 0:02:12]} 20. Rxc3 {[%clk 0:01:45]}  Ne4+ {[%clk 0:02:13]} 21. Ke1 {[%clk 0:01:42]}  Nxd2 {[%clk 0:02:13]} 22. Rxd2 {[%clk 0:01:43]}  Ke7 {[%clk 0:02:11]} 23. Bf3 {[%clk 0:01:43]}  Rhc8 {[%clk 0:02:09]} 24. e4 {[%clk 0:01:42]}  Bxe4 {[%clk 0:02:07]} 25. Bxe4 {[%clk 0:01:41]}  dxe4 {[%clk 0:02:08]} 26. Rd4 {[%clk 0:01:40]}  a5 {[%clk 0:02:06]} 27. Rxe4 {[%clk 0:01:40]}  a4 {[%clk 0:02:06]} 28. Kd2 {[%clk 0:01:36]}  b5 {[%clk 0:02:05]} 29. Kc1 {[%clk 0:01:36]}  c5 {[%clk 0:02:05]} 30. Kb2 {[%clk 0:01:35]}  b4 {[%clk 0:02:04]} 31. Rcc4 {[%clk 0:01:36]}  a3+ {[%clk 0:02:04]} 32. Ka2 {[%clk 0:01:36]}  b3+ {[%clk 0:02:04]} 0-1


[Site "https://www.chess.com"]

[Event "Titled Tuesday Blitz November 29 Early 2022"]
[White "Chernov, Mikhail"]
[Black "Maksimovic, Bojan"]
[WhiteFideId "24143170"]
[BlackFideId "14408120"]
[WhiteElo "2113"]
[BlackElo "2447"]
[Result "1-0"]
[Round "02"]
[TimeControl "180+1"]
[Date "2022.11.30"]
[WhiteClock "0:02:08"]
[BlackClock "0:00:16"]

1. e4 {[%clk 0:03:00]}  c5 {[%clk 0:02:55]} 2. Nf3 {[%clk 0:03:00]}  e6 {[%clk 0:02:54]} 3. d4 {[%clk 0:03:01]}  cxd4 {[%clk 0:02:54]} 4. Nxd4 {[%clk 0:03:01]}  a6 {[%clk 0:02:53]} 5. Be2 {[%clk 0:03:02]}  Nf6 {[%clk 0:02:48]} 6. Nc3 {[%clk 0:03:02]}  Qc7 {[%clk 0:02:47]} 7. O-O {[%clk 0:03:01]}  Bb4 {[%clk 0:02:46]} 8. Be3 {[%clk 0:02:58]}  Bxc3 {[%clk 0:02:29]} 9. bxc3 {[%clk 0:02:59]}  Nxe4 {[%clk 0:02:27]} 10. Bd3 {[%clk 0:02:59]}  Nf6 {[%clk 0:01:40]} 11. Re1 {[%clk 0:02:52]}  Nc6 {[%clk 0:01:38]} 12. Nf5 {[%clk 0:02:41]}  O-O {[%clk 0:01:24]} 13. Nxg7 {[%clk 0:02:26]}  Kxg7 {[%clk 0:01:20]} 14. Bh6+ {[%clk 0:02:26]}  Kxh6 {[%clk 0:00:19]} 15. Qd2+ {[%clk 0:02:25]}  Kh5 {[%clk 0:00:20]} 16. Re3 {[%clk 0:02:17]}  Qf4 {[%clk 0:00:16]} 17. Rh3+ {[%clk 0:02:16]}  Kg5 {[%clk 0:00:16]} 18. Rg3+ {[%clk 0:02:08]}  Ng4 {[%clk 0:00:16]} 19. h4+ {[%clk 0:02:08]} 1-0


[Site "https://www.chess.com"]

[Event "Titled Tuesday Blitz November 29 Early 2022"]
[White "Dilanyan, Grigor"]
[Black "Sethuraman, S.P."]
[WhiteFideId "13303570"]
[BlackFideId "5021596"]
[WhiteElo "2229"]
[BlackElo "2545"]
[Result "0-1"]
[Round "02"]
[TimeControl "180+1"]
[Date "2022.11.30"]
[WhiteClock "0:00:10"]
[BlackClock "0:00:43"]

1. e4 {[%clk 0:02:59]}  c5 {[%clk 0:02:59]} 2. Nf3 {[%clk 0:02:59]}  e6 {[%clk 0:03:00]} 3. g3 {[%clk 0:02:58]}  Nc6 {[%clk 0:03:00]} 4. Bg2 {[%clk 0:02:57]}  Nf6 {[%clk 0:02:57]} 5. Nc3 {[%clk 0:02:53]}  d6 {[%clk 0:02:53]} 6. O-O {[%clk 0:02:53]}  Be7 {[%clk 0:02:53]} 7. Re1 {[%clk 0:02:53]}  O-O {[%clk 0:02:53]} 8. d4 {[%clk 0:02:54]}  cxd4 {[%clk 0:02:53]} 9. Nxd4 {[%clk 0:02:54]}  Qc7 {[%clk 0:02:47]} 10. Ndb5 {[%clk 0:02:39]}  Qb8 {[%clk 0:02:47]} 11. Bf4 {[%clk 0:02:39]}  Rd8 {[%clk 0:02:46]} 12. a4 {[%clk 0:02:33]}  a6 {[%clk 0:02:45]} 13. Na3 {[%clk 0:02:33]}  Ne5 {[%clk 0:02:43]} 14. Qe2 {[%clk 0:02:28]}  Bd7 {[%clk 0:02:39]} 15. Rad1 {[%clk 0:02:19]}  Bc6 {[%clk 0:02:38]} 16. a5 {[%clk 0:02:07]}  Qc7 {[%clk 0:02:38]} 17. Bxe5 {[%clk 0:02:07]}  dxe5 {[%clk 0:02:37]} 18. Nc4 {[%clk 0:02:07]}  Bb4 {[%clk 0:02:37]} 19. Qe3 {[%clk 0:02:00]}  Bxa5 {[%clk 0:02:32]} 20. h3 {[%clk 0:01:49]}  h6 {[%clk 0:02:25]} 21. Kh2 {[%clk 0:01:48]}  Rxd1 {[%clk 0:02:14]} 22. Rxd1 {[%clk 0:01:48]}  Bxc3 {[%clk 0:02:08]} 23. Qxc3 {[%clk 0:01:48]}  Bxe4 {[%clk 0:02:05]} 24. Nxe5 {[%clk 0:01:24]}  Qxc3 {[%clk 0:02:05]} 25. bxc3 {[%clk 0:01:25]}  Bxg2 {[%clk 0:02:05]} 26. Kxg2 {[%clk 0:01:26]}  b5 {[%clk 0:02:02]} 27. Ra1 {[%clk 0:01:22]}  Nd5 {[%clk 0:01:53]} 28. c4 {[%clk 0:01:16]}  bxc4 {[%clk 0:01:54]} 29. Nxc4 {[%clk 0:01:16]}  Rc8 {[%clk 0:01:54]} 30. Nd6 {[%clk 0:01:08]}  Rc6 {[%clk 0:01:50]} 31. Ne4 {[%clk 0:01:05]}  f5 {[%clk 0:01:45]} 32. Nd2 {[%clk 0:00:49]}  Rxc2 {[%clk 0:01:44]} 33. Nb3 {[%clk 0:00:49]}  Rc6 {[%clk 0:01:38]} 34. Ra5 {[%clk 0:00:49]}  Kf7 {[%clk 0:01:32]} 35. Nc5 {[%clk 0:00:47]}  Nc7 {[%clk 0:01:29]} 36. Nd3 {[%clk 0:00:47]}  Ke7 {[%clk 0:01:22]} 37. Kf3 {[%clk 0:00:43]}  g5 {[%clk 0:01:11]} 38. Ke2 {[%clk 0:00:42]}  Nd5 {[%clk 0:01:08]} 39. Nc5 {[%clk 0:00:39]}  Nb4 {[%clk 0:00:58]} 40. Kd2 {[%clk 0:00:31]}  Kd6 {[%clk 0:00:58]} 41. Nb7+ {[%clk 0:00:26]}  Kc7 {[%clk 0:00:58]} 42. Nc5 {[%clk 0:00:22]}  Kb6 {[%clk 0:00:57]} 43. Nb3 {[%clk 0:00:22]}  Rc2+ {[%clk 0:00:57]} 44. Ke1 {[%clk 0:00:22]}  Rb2 {[%clk 0:00:53]} 45. Nd2 {[%clk 0:00:10]}  Rxd2 {[%clk 0:00:43]} 0-1


[Site "https://www.chess.com"]

[Event "Titled Tuesday Blitz November 29 Early 2022"]
[White "Drygalov, Sergey"]
[Black "Aldokhin, Ivan"]
[WhiteFideId "24171743"]
[BlackFideId "24115720"]
[WhiteElo "2528"]
[BlackElo "2313"]
[Result "0-1"]
[Round "02"]
[TimeControl "180+1"]
[Date "2022.11.30"]
[WhiteClock "0:00:06"]
[BlackClock "0:00:17"]

1. d4 {[%clk 0:02:59]}  Nf6 {[%clk 0:03:00]} 2. c4 {[%clk 0:02:57]}  g6 {[%clk 0:03:01]} 3. Nc3 {[%clk 0:02:57]}  Bg7 {[%clk 0:03:02]} 4. e4 {[%clk 0:02:58]}  d6 {[%clk 0:03:02]} 5. Nf3 {[%clk 0:02:58]}  O-O {[%clk 0:03:03]} 6. Be2 {[%clk 0:02:59]}  Nc6 {[%clk 0:03:03]} 7. d5 {[%clk 0:02:59]}  Nb4 {[%clk 0:03:03]} 8. O-O {[%clk 0:02:59]}  Re8 {[%clk 0:03:03]} 9. Bg5 {[%clk 0:02:57]}  h6 {[%clk 0:03:03]} 10. Bh4 {[%clk 0:02:58]}  e6 {[%clk 0:03:03]} 11. Re1 {[%clk 0:02:37]}  exd5 {[%clk 0:03:01]} 12. exd5 {[%clk 0:02:32]}  g5 {[%clk 0:02:40]} 13. Bg3 {[%clk 0:02:31]}  Ne4 {[%clk 0:02:25]} 14. Nxe4 {[%clk 0:02:23]}  Rxe4 {[%clk 0:02:25]} 15. Qd2 {[%clk 0:02:23]}  a5 {[%clk 0:02:19]} 16. a3 {[%clk 0:02:17]}  Na6 {[%clk 0:02:18]} 17. Bd3 {[%clk 0:02:17]}  Rxe1+ {[%clk 0:02:04]} 18. Rxe1 {[%clk 0:02:18]}  Nc5 {[%clk 0:01:47]} 19. Bb1 {[%clk 0:02:17]}  a4 {[%clk 0:01:15]} 20. h4 {[%clk 0:02:13]}  g4 {[%clk 0:01:04]} 21. Nd4 {[%clk 0:02:09]}  Bd7 {[%clk 0:01:03]} 22. Nf5 {[%clk 0:01:51]}  Bxf5 {[%clk 0:01:03]} 23. Bxf5 {[%clk 0:01:52]}  Qf6 {[%clk 0:01:03]} 24. Bxg4 {[%clk 0:01:27]}  Qxb2 {[%clk 0:01:03]} 25. Qf4 {[%clk 0:01:27]}  Nd3 {[%clk 0:00:48]} 26. Qe4 {[%clk 0:00:56]}  Nxe1 {[%clk 0:00:47]} 27. Qxe1 {[%clk 0:00:57]}  Qxa3 {[%clk 0:00:46]} 28. Qe7 {[%clk 0:00:55]}  Qa1+ {[%clk 0:00:31]} 29. Kh2 {[%clk 0:00:55]}  a3 {[%clk 0:00:32]} 30. Qxc7 {[%clk 0:00:24]}  a2 {[%clk 0:00:31]} 31. Qxb7 {[%clk 0:00:24]}  Rf8 {[%clk 0:00:31]} 32. c5 {[%clk 0:00:13]}  Qd4 {[%clk 0:00:20]} 33. Bf3 {[%clk 0:00:06]}  Qxc5 {[%clk 0:00:17]} 34. Qa7 {[%clk 0:00:06]}  Qxa7 {[%clk 0:00:17]} 0-1


[Site "https://www.chess.com"]